Workbook

Sheet TR134
A1: Indication of FFR results for Tender Round 133, accepted tenders will be officially notified via an issued acceptance letter.
A2: Tender Ref | B2: Status | C2: Rejection Code | D2: Company Name | E2: Tendered Unit (BMU/Unit ID) | F2: TO connection / DNO connection | G2: Generation Type | H2: Start Date | I2: End Date | J2: Tendered Period (dd.mm.yy - dd.mm.yy) | K2: Applicable FFR Capability Data Table | L2: Tendered Frames per Service Day | U2: Tendered Prices*** | X2: BMUs Only - Applicable Balancing Service (i.e. ABSVD Imbalance) YES/NO | Y2: Dynamic Providers Only | AC2: Dynamic Providers only | AJ2: Please indicate as per detail change provision if you are adding volume | AK2: Please state the accepted tender that you are stacking onto | AL2: Please state if this is an all or nothing bid. Clearly reference what lines are included in each all or nothing bid | AM2: Please indicate if this is a mutually exclusive tender | AN2: Non-Dynamic Providers | AP2: Comments
L3: Working Days (Mon-Fri) | O3: Saturdays | R3: Sundays/Bank Holidays | U3: Availability Fee (£/h) | V3: Nomination Fee (£/h) | W3: Window Initiation Fee (£/window) | Y3: Maximum Part Load Point (MW) | Z3: Minimum Part Load Point (MW) | AA3: Minimum MEL (MW) | AB3: Maximum SEL (MW) | AN3: Volume of Response Tendered
B4: Status | C4: Rejection Code | L4: From | M4: To | N4: Duration (h) | O4: From | P4: To | Q4: Duration (h) | R4: From | S4: To | T4: Duration (h) | AC4: Primary Response (max.) @ 0.2Hz (MW) | AD4: Primary Response (max.) @ 0.5Hz (MW) | AE4: Primary Response (max.) @ 0.8Hz (MW) | AF4: Secondary Response (max.) @ 0.2/0.2Hz (MW) | AG4: Secondary Response (max.) @ 0.5/0.5Hz (MW) | AH4: High Frequency Response (max.) @ 0.2Hz (MW) | AI4: High Frequency Response (max.) @ 0.5Hz (MW) | AN4: Automatic Response Energy Deliverable by 10s (MW) | AO4: Automatic Response Energy Deliverable by 30s (MW)
A5: 134 | D5: Example Company | E5: Ex-FFR-1 | F5: TO connection | G5: Wind | H5: =#REF! ->  | I5: =#REF! ->  | J5: =IFERROR(TEXT(H5,"DD.MM.YY")&" - "&TEXT(I5,"DD.MM.YY")&" ("&DATEDIF(H5,I5+1,"m")&" months)","Tender End Date is Before Start Date") -> Tender End Date is Before Start Date | K5: As per FFR framework agreement | L5: 2300 | M5: 700 | N5: =IF(L5>M5, (2400-L5+M5)/100, IF(AND(L5="",M5="",L5=M5), "", IF(L5=M5,24,(M5-L5)/100))) -> 8 | O5: 2300 | P5: 700 | Q5: =IF(O5>P5, (2400-O5+P5)/100, IF(AND(O5="",P5="",O5=P5), "", IF(O5=P5,24,(P5-O5)/100))) -> 8 | R5: 2300 | S5: 700 | T5: =IF(R5>S5, (2400-R5+S5)/100, IF(AND(R5="",S5="",R5=S5), "", IF(R5=S5,24,(S5-R5)/100))) -> 8 | U5: 100 | V5: 600 | W5: - | X5: - | Y5: - | Z5: - | AA5: - | AB5: - | AC5: - | AD5: - | AE5: - | AF5: - | AG5: - | AH5: - | AI5: - | AJ5: - | AK5: - | AN5: - | AO5: - | AP5: -
A6: 134 | D6: Example Company | E6: =E5 -> Ex-FFR-1 | F6: DNO connection | G6: Gas | H6: =H5 ->  | I6: =I5 ->  | J6: =IFERROR(TEXT(H6,"DD.MM.YY")&" - "&TEXT(I6,"DD.MM.YY")&" ("&DATEDIF(H6,I6+1,"m")&" months)","Tender End Date is Before Start Date") -> Tender End Date is Before Start Date | K6: As per FFR framework agreement | L6: 700 | M6: 2300 | N6: 16 | O6: 700 | P6: 2300 | Q6: 16 | R6: 700 | S6: 2300 | T6: 16 | U6: 600 | V6: 100 | W6: - | X6: - | Y6: - | Z6: - | AA6: - | AB6: - | AC6: - | AD6: - | AE6: - | AF6: - | AG6: - | AH6: - | AI6: - | AJ6: - | AK6: - | AN6: - | AO6: - | AP6: -
A7: =A5+0.001 -> 134.001 | B7: Rejected | C7: 2 | D7: Centrica Brigg Ltd | E7: ROOSB-1 | F7: DNO connection | G7: Battery | H7: 2021-02-28 | I7: 2021-03-31 | J7: 28.02.21 - 31.03.21 (1 months) | K7: as per FFR framework agreement | L7: 2300 | M7: 2300 | N7: =IF(L7>M7, (2400-L7+M7)/100, IF(AND(L7="",M7="",L7=M7), "", IF(L7=M7,24,(M7-L7)/100))) -> 24 | O7: 2300 | P7: 2300 | Q7: =IF(O7>P7, (2400-O7+P7)/100, IF(AND(O7="",P7="",O7=P7), "", IF(O7=P7,24,(P7-O7)/100))) -> 24 | R7: 2300 | S7: 2300 | T7: =IF(R7>S7, (2400-R7+S7)/100, IF(AND(R7="",S7="",R7=S7), "", IF(R7=S7,24,(S7-R7)/100))) -> 24 | U7: 798.53 | X7: Yes | Y7: 2 | Z7: 0 | AA7: 47 | AB7: 2 | AC7: 18.8 | AD7: 47 | AE7: 47 | AF7: 18.8 | AG7: 47 | AH7: 18.8 | AI7: 47
A8: =A7+0.001 -> 134.002 | B8: Accepted | C8: NA | D8: REstore Flexpond UK Ltd | E8: REST-1 | F8: DNO connection | G8: Multiple Fuel Type | H8: 2021-02-28 | I8: 2021-03-31 | J8: 28.02.21 - 31.03.21 (1 months) | K8: as per FFR framework agreement | L8: 2300 | M8: 700 | N8: =IF(L8>M8, (2400-L8+M8)/100, IF(AND(L8="",M8="",L8=M8), "", IF(L8=M8,24,(M8-L8)/100))) -> 8 | O8: 2300 | P8: 700 | Q8: =IF(O8>P8, (2400-O8+P8)/100, IF(AND(O8="",P8="",O8=P8), "", IF(O8=P8,24,(P8-O8)/100))) -> 8 | R8: 2300 | S8: 700 | T8: =IF(R8>S8, (2400-R8+S8)/100, IF(AND(R8="",S8="",R8=S8), "", IF(R8=S8,24,(S8-R8)/100))) -> 8 | U8: 183.43 | AC8: 6.8 | AD8: 17 | AE8: 17 | AF8: 6.8 | AG8: 17 | AH8: 6.8 | AI8: 17
A9: 134.003 | B9: Accepted | C9: NA | D9: REstore Flexpond UK Ltd | E9: REST-1 | F9: DNO connection | G9: Multiple Fuel Type | H9: 2021-03-01 | I9: 2021-03-31 | J9: 01.03.21 - 31.03.21 (1 months) | K9: As per FFR framework agreement | L9: 700 | M9: 1500 | N9: 8 | O9: 700 | P9: 1500 | Q9: 8 | R9: 700 | S9: 1500 | T9: 8 | U9: 191.25 | AC9: 6.8 | AD9: 17 | AE9: 17 | AF9: 6.8 | AG9: 17 | AH9: 6.8 | AI9: 17
A10: 134.004 | B10: Accepted | C10: NA | D10: REstore Flexpond UK Ltd | E10: REST-1 | F10: DNO connection | G10: Multiple Fuel Type | H10: 2021-03-01 | I10: 2021-03-31 | J10: 01.03.21 - 31.03.21 (1 months) | K10: As per FFR framework agreement | L10: 1500 | M10: 2300 | N10: 8 | O10: 1500 | P10: 2300 | Q10: 8 | R10: 1500 | S10: 2300 | T10: 8 | U10: 237.83 | AC10: 6.8 | AD10: 17 | AE10: 17 | AF10: 6.8 | AG10: 17 | AH10: 6.8 | AI10: 17
A11: 134.005 | B11: Accepted | C11: NA | D11: Drax Power Limited | E11: DRAX_01Z | F11: TO connection | G11: Bio Fuel | H11: 2021-02-28 | I11: 2021-03-31 | J11: 28.02.21 - 31.03.21 (1 months) | K11: As per FFR framework agreement | L11: 2300 | M11: 2300 | N11: =IF(L11>M11, (2400-L11+M11)/100, IF(AND(L11="",M11="",L11=M11), "", IF(L11=M11,24,(M11-L11)/100))) -> 24 | O11: 2300 | P11: 2300 | Q11: =IF(O11>P11, (2400-O11+P11)/100, IF(AND(O11="",P11="",O11=P11), "", IF(O11=P11,24,(P11-O11)/100))) -> 24 | R11: 2300 | S11: 2300 | T11: =IF(R11>S11, (2400-R11+S11)/100, IF(AND(R11="",S11="",R11=S11), "", IF(R11=S11,24,(S11-R11)/100))) -> 24 | U11: 194 | V11: 0 | X11: YES | Y11: 660 | Z11: 420 | AA11: 420 | AB11: 300 | AC11: 0 | AD11: 0 | AE11: 0 | AF11: 0 | AG11: 0 | AH11: 24 | AI11: 68 | AJ11: No | AK11: n/a | AM11: n/a
A12: 134.006 | B12: Accepted | C12: NA | D12: EDF Energy Customers Limited | E12: AG-AEDF01 | F12: DNO connection | G12: DSF: Storage (for export) | H12: 2021-02-28 | I12: 2021-03-31 | J12: 28.02.21 - 31.03.21 (1 months) | K12: As per FFR framework agreement | L12: 2300 | M12: 700 | N12: =IF(L12>M12, (2400-L12+M12)/100, IF(AND(L12="",M12="",L12=M12), "", IF(L12=M12,24,(M12-L12)/100))) -> 8 | O12: 2300 | P12: 700 | Q12: =IF(O12>P12, (2400-O12+P12)/100, IF(AND(O12="",P12="",O12=P12), "", IF(O12=P12,24,(P12-O12)/100))) -> 8 | R12: 2300 | S12: 700 | T12: =IF(R12>S12, (2400-R12+S12)/100, IF(AND(R12="",S12="",R12=S12), "", IF(R12=S12,24,(S12-R12)/100))) -> 8 | U12: 61.8 | AC12: 2.4 | AD12: 6 | AE12: 6 | AF12: 2.4 | AG12: 6 | AH12: 2.4 | AI12: 6 | AL12: A
A13: 134.007 | B13: Accepted | C13: NA | D13: EDF Energy Customers Limited | E13: AG-AEDF01 | F13: DNO connection | G13: DSF: Storage (for export) | H13: 2021-03-01 | I13: 2021-03-31 | J13: 01.03.21 - 31.03.21 (1 months) | K13: As per FFR framework agreement | L13: 700 | M13: 1500 | N13: =IF(L13>M13, (2400-L13+M13)/100, IF(AND(L13="",M13="",L13=M13), "", IF(L13=M13,24,(M13-L13)/100))) -> 8 | O13: 700 | P13: 1500 | Q13: =IF(O13>P13, (2400-O13+P13)/100, IF(AND(O13="",P13="",O13=P13), "", IF(O13=P13,24,(P13-O13)/100))) -> 8 | R13: 700 | S13: 1500 | T13: =IF(R13>S13, (2400-R13+S13)/100, IF(AND(R13="",S13="",R13=S13), "", IF(R13=S13,24,(S13-R13)/100))) -> 8 | U13: 67.2 | AC13: 2.4 | AD13: 6 | AE13: 6 | AF13: 2.4 | AG13: 6 | AH13: 2.4 | AI13: 6 | AL13: A
A14: 134.008 | B14: Accepted | C14: NA | D14: EDF Energy Customers Limited | E14: AG-AEDF01 | F14: DNO connection | G14: DSF: Storage (for export) | H14: 2021-03-01 | I14: 2021-03-31 | J14: 01.03.21 - 31.03.21 (1 months) | K14: As per FFR framework agreement | L14: 1500 | M14: 2300 | N14: 8 | O14: 1500 | P14: 2300 | Q14: 8 | R14: 1500 | S14: 2300 | T14: 8 | U14: 87 | AC14: 2.4 | AD14: 6 | AE14: 6 | AF14: 2.4 | AG14: 6 | AH14: 2.4 | AI14: 6 | AL14: A
A15: 134.009 | B15: Rejected | C15: 2 | D15: EDF Energy Customers Limited | E15: AG -GEDF01 | F15: DNO connection | G15: DSF: Storage (for export) | H15: 2021-02-28 | I15: 2021-03-31 | J15: 28.02.21 - 31.03.21 (1 months) | K15: As per FFR framework agreement | L15: 2300 | M15: 2300 | N15: 24 | O15: 2300 | P15: 2300 | Q15: 24 | R15: 2300 | S15: 2300 | T15: 24 | U15: 344 | AC15: 8 | AD15: 20 | AE15: 20 | AF15: 8 | AG15: 20 | AH15: 8 | AI15: 20
A16: 134.01 | B16: Rejected | C16: 2 | D16: EDF Energy Customers Limited | E16: AG -GEDF02 | F16: DNO connection | G16: DSF: Storage (for export) | H16: 2021-02-28 | I16: 2021-03-31 | J16: 28.02.21 - 31.03.21 (1 months) | K16: As per FFR framework agreement | L16: 2300 | M16: 2300 | N16: 24 | O16: 2300 | P16: 2300 | Q16: 24 | R16: 2300 | S16: 2300 | T16: 24 | U16: 345 | AC16: 8 | AD16: 20 | AE16: 20 | AF16: 8 | AG16: 20 | AH16: 8 | AI16: 20
A17: 134.011 | B17: Accepted | C17: NA | D17: EDF Energy Customers Limited | E17: EDFE-2 | F17: DNO connection | G17: DSF: Storage (for export) | H17: 2021-02-28 | I17: 2021-03-31 | J17: 28.02.21 - 31.03.21 (1 months) | K17: As per FFR framework agreement | L17: 2300 | M17: 2300 | N17: 24 | O17: 2300 | P17: 2300 | Q17: 24 | R17: 2300 | S17: 2300 | T17: 24 | U17: 98.64 | AC17: 3.2 | AD17: 8 | AE17: 8 | AF17: 3.2 | AG17: 8 | AH17: 3.2 | AI17: 8
A18: 134.012 | B18: Accepted | C18: NA | D18: EDF Energy Customers Limited | E18: EDFE-6 | F18: DNO connection | G18: DSF: Storage (for export) | H18: 2021-02-28 | I18: 2021-03-31 | J18: 28.02.21 - 31.03.21 (1 months) | K18: As per FFR framework agreement | L18: 2300 | M18: 2300 | N18: 24 | O18: 2300 | P18: 2300 | Q18: 24 | R18: 2300 | S18: 2300 | T18: 24 | U18: 86.45 | AC18: 2.8 | AD18: 7 | AE18: 7 | AF18: 2.8 | AG18: 7 | AH18: 2.8 | AI18: 7
A19: 134.013 | B19: Rejected | C19: 2 | D19: EDF Energy Customers Limited | E19: EDFE-7 | F19: DNO connection | G19: DSF: Storage (for export) | H19: 2021-02-28 | I19: 2021-03-31 | J19: 28.02.21 - 31.03.21 (1 months) | K19: As per FFR framework agreement | L19: 2300 | M19: 2300 | N19: 24 | O19: 2300 | P19: 2300 | Q19: 24 | R19: 2300 | S19: 2300 | T19: 24 | U19: 940.31 | AC19: 19.6 | AD19: 49 | AE19: 49 | AF19: 19.6 | AG19: 49 | AH19: 15.6 | AI19: 39
A20: 134.014 | B20: Accepted | C20: NA | D20: EDF Energy Customers Limited | E20: EDFE-8 | F20: DNO connection | G20: DSF: Storage (for export) | H20: 2021-02-28 | I20: 2021-03-31 | J20: 28.02.21 - 31.03.21 (1 months) | K20: As per FFR framework agreement | L20: 2300 | M20: 700 | N20: 8 | O20: 2300 | P20: 700 | Q20: 8 | R20: 2300 | S20: 700 | T20: 8 | U20: 210 | AC20: 8 | AD20: 20 | AE20: 20 | AF20: 8 | AG20: 20 | AH20: 8 | AI20: 20 | AL20: B
A21: 134.015 | B21: Accepted | C21: NA | D21: EDF Energy Customers Limited | E21: EDFE-8 | F21: DNO connection | G21: DSF: Storage (for export) | H21: 2021-03-01 | I21: 2021-03-31 | J21: 01.03.21 - 31.03.21 (1 months) | K21: As per FFR framework agreement | L21: 700 | M21: 1500 | N21: 8 | O21: 700 | P21: 1500 | Q21: 8 | R21: 700 | S21: 1500 | T21: 8 | U21: 220 | AC21: 8 | AD21: 20 | AE21: 20 | AF21: 8 | AG21: 20 | AH21: 8 | AI21: 20 | AL21: B
A22: 134.016 | B22: Accepted | C22: NA | D22: EDF Energy Customers Limited | E22: EDFE-8 | F22: DNO connection | G22: DSF: Storage (for export) | H22: 2021-03-01 | I22: 2021-03-31 | J22: 01.03.21 - 31.03.21 (1 months) | K22: As per FFR framework agreement | L22: 1500 | M22: 2300 | N22: 8 | O22: 1500 | P22: 2300 | Q22: 8 | R22: 1500 | S22: 2300 | T22: 8 | U22: 230 | AC22: 8 | AD22: 20 | AE22: 20 | AF22: 8 | AG22: 20 | AH22: 8 | AI22: 20 | AL22: B
A23: 134.017 | B23: Rejected | C23: 2 | D23: Flexitricity Limited | E23: AG-EFLX01 | F23: DNO connection | G23: DSF: Storage (for export) | H23: 2021-02-28 | I23: 2021-03-31 | J23: 28.02.21 - 31.03.21 (1 months) | K23: As per FFR framework agreement | L23: 2300 | M23: 2300 | N23: =IF(L23>M23, (2400-L23+M23)/100, IF(AND(L23="",M23="",L23=M23), "", IF(L23=M23,24,(M23-L23)/100))) -> 24 | O23: 2300 | P23: 2300 | Q23: =IF(O23>P23, (2400-O23+P23)/100, IF(AND(O23="",P23="",O23=P23), "", IF(O23=P23,24,(P23-O23)/100))) -> 24 | R23: 2300 | S23: 2300 | T23: =IF(R23>S23, (2400-R23+S23)/100, IF(AND(R23="",S23="",R23=S23), "", IF(R23=S23,24,(S23-R23)/100))) -> 24 | U23: 368.03 | X23: YES | AC23: 7.6 | AD23: 19 | AE23: 19 | AF23: 7.6 | AG23: 19 | AH23: 7.6 | AI23: 19
A24: 134.018 | B24: Rejected | C24: 2 | D24: Flexitricity Limited | E24: AG-BFLX01 | F24: DNO connection | G24: DSF: Storage (for export) | H24: 2021-02-28 | I24: 2021-03-31 | J24: 28.02.21 - 31.03.21 (1 months) | K24: As per FFR framework agreement | L24: 2300 | M24: 2300 | N24: =IF(L24>M24, (2400-L24+M24)/100, IF(AND(L24="",M24="",L24=M24), "", IF(L24=M24,24,(M24-L24)/100))) -> 24 | O24: 2300 | P24: 2300 | Q24: =IF(O24>P24, (2400-O24+P24)/100, IF(AND(O24="",P24="",O24=P24), "", IF(O24=P24,24,(P24-O24)/100))) -> 24 | R24: 2300 | S24: 2300 | T24: =IF(R24>S24, (2400-R24+S24)/100, IF(AND(R24="",S24="",R24=S24), "", IF(R24=S24,24,(S24-R24)/100))) -> 24 | U24: 136.64 | X24: YES | AC24: 2.8 | AD24: 7 | AE24: 7 | AF24: 2.8 | AG24: 7 | AH24: 2.8 | AI24: 7
A25: 134.019 | B25: Rejected | C25: 2 | D25: Flexitricity Limited | E25: AG-MFLX02 | F25: DNO connection | G25: DSF: Storage (for export) | H25: 2021-02-28 | I25: 2021-03-31 | J25: 28.02.21 - 31.03.21 (1 months) | K25: As per FFR framework agreement | L25: 2300 | M25: 2300 | N25: 24 | O25: 2300 | P25: 2300 | Q25: 24 | R25: 2300 | S25: 2300 | T25: 24 | U25: 928.55 | X25: YES | AC25: 19.96 | AD25: 49 | AE25: 49 | AF25: 19.96 | AG25: 49 | AH25: 19.96 | AI25: 49
A26: 134.02 | B26: Accepted | C26: NA | D26: Flexitricity Limited | E26: AG-FLX00L | F26: DNO connection | G26: DSF: Storage (for export) | H26: 2021-02-28 | I26: 2021-03-31 | J26: 28.02.21 - 31.03.21 (1 months) | K26: As per FFR framework agreement | L26: 2300 | M26: 700 | N26: 8 | O26: 2300 | P26: 700 | Q26: 8 | R26: 2300 | S26: 700 | T26: 8 | U26: 42 | X26: YES | AC26: 1.6 | AD26: 4 | AE26: 4 | AF26: 1.6 | AG26: 4 | AH26: 1.6 | AI26: 4
A27: =A26+0.001 -> 134.021 | B27: Accepted | C27: NA | D27: Flexitricity Limited | E27: AG-FLX00L | F27: DNO connection | G27: DSF: Storage (for export) | H27: 2021-03-01 | I27: 2021-03-31 | J27: 01.03.21 - 31.03.21 (1 months) | K27: As per FFR framework agreement | L27: 700 | M27: 1500 | N27: 8 | O27: 700 | P27: 1500 | Q27: 8 | R27: 700 | S27: 1500 | T27: 8 | U27: 43.76 | X27: YES | AC27: 1.6 | AD27: 4 | AE27: 4 | AF27: 1.6 | AG27: 4 | AH27: 1.6 | AI27: 4
A28: =A27+0.001 -> 134.022 | B28: Accepted | C28: NA | D28: Flexitricity Limited | E28: AG-FLX00L | F28: DNO connection | G28: DSF: Storage (for export) | H28: 2021-03-01 | I28: 2021-03-31 | J28: 01.03.21 - 31.03.21 (1 months) | K28: As per FFR framework agreement | L28: 1500 | M28: 2300 | N28: 8 | O28: 1500 | P28: 2300 | Q28: 8 | R28: 1500 | S28: 2300 | T28: 8 | U28: 48.4 | X28: YES | AC28: 1.6 | AD28: 4 | AE28: 4 | AF28: 1.6 | AG28: 4 | AH28: 1.6 | AI28: 4
A29: =A28+0.001 -> 134.023 | B29: Accepted | C29: NA | D29: GridBeyond Limited | E29: GBND-2 | F29: DNO connection | G29: DSF: Load response | H29: 2021-02-28 | I29: 2021-03-31 | J29: 28.02.21 - 31.03.21 (1 months) | K29: As per FFR framework agreement | L29: 2300 | M29: 700 | N29: 8 | U29: 199.2 | AC29: 6.4 | AD29: 16 | AE29: 16 | AF29: 6.4 | AG29: 16 | AH29: 6.4 | AI29: 16 | AL29: A
A30: =A29+0.001 -> 134.024 | B30: Accepted | C30: NA | D30: GridBeyond Limited | E30: GBND-2 | F30: DNO connection | G30: DSF: Load response | H30: 2021-03-01 | I30: 2021-03-31 | J30: 01.03.21 - 31.03.21 (1 months) | K30: As per FFR framework agreement | L30: 700 | M30: 1500 | N30: 8 | U30: 211.65 | AC30: 6.8 | AD30: 17 | AE30: 17 | AF30: 6.8 | AG30: 17 | AH30: 6.8 | AI30: 17 | AL30: B
A31: =A30+0.001 -> 134.025 | B31: Accepted | C31: NA | D31: GridBeyond Limited | E31: GBND-2 | F31: DNO connection | G31: DSF: Load response | H31: 2021-03-01 | I31: 2021-03-31 | J31: 01.03.21 - 31.03.21 (1 months) | K31: As per FFR framework agreement | L31: 1500 | M31: 2300 | N31: 8 | U31: 159.6 | AC31: 4.8 | AD31: 12 | AE31: 13 | AF31: 5.2 | AG31: 13 | AH31: 5.2 | AI31: 13 | AL31: C
A32: 134.026 | B32: Accepted | C32: NA | D32: GridBeyond Limited | E32: GBND-2 | F32: DNO connection | G32: DSF: Load response | H32: 2021-02-28 | I32: 2021-03-31 | J32: 28.02.21 - 31.03.21 (1 months) | K32: As per FFR framework agreement | O32: 2300 | P32: 700 | Q32: 8 | U32: 124.5 | AC32: 4 | AD32: 10 | AE32: 10 | AF32: 4 | AG32: 10 | AH32: 4 | AI32: 10 | AL32: A
A33: 134.027 | B33: Accepted | C33: NA | D33: GridBeyond Limited | E33: GBND-2 | F33: DNO connection | G33: DSF: Load response | H33: 2021-03-01 | I33: 2021-03-31 | J33: 01.03.21 - 31.03.21 (1 months) | K33: As per FFR framework agreement | O33: 700 | P33: 1500 | Q33: 8 | U33: 124.5 | AC33: 4 | AD33: 10 | AE33: 10 | AF33: 4 | AG33: 10 | AH33: 4 | AI33: 10 | AL33: B
A34: 134.028 | B34: Accepted | C34: NA | D34: GridBeyond Limited | E34: GBND-2 | F34: DNO connection | G34: DSF: Load response | H34: 2021-03-01 | I34: 2021-03-31 | J34: 01.03.21 - 31.03.21 (1 months) | K34: As per FFR framework agreement | O34: 1500 | P34: 2300 | Q34: 8 | U34: 126 | AC34: 4 | AD34: 10 | AE34: 10 | AF34: 4 | AG34: 10 | AH34: 4 | AI34: 10 | AL34: C
A35: 134.029 | B35: Accepted | C35: NA | D35: GridBeyond Limited | E35: GBND-2 | F35: DNO connection | G35: DSF: Load response | H35: 2021-02-28 | I35: 2021-03-31 | J35: 28.02.21 - 31.03.21 (1 months) | K35: As per FFR framework agreement | R35: 2300 | S35: 700 | T35: 8 | U35: 99.6 | AC35: 3.2 | AD35: 8 | AE35: 8 | AF35: 3.2 | AG35: 8 | AH35: 3.2 | AI35: 8 | AL35: A
A36: 134.03 | B36: Accepted | C36: NA | D36: GridBeyond Limited | E36: GBND-2 | F36: DNO connection | G36: DSF: Load response | H36: 2021-03-01 | I36: 2021-03-31 | J36: 01.03.21 - 31.03.21 (1 months) | K36: As per FFR framework agreement | R36: 700 | S36: 1500 | T36: 8 | U36: 99.6 | AC36: 3.2 | AD36: 8 | AE36: 8 | AF36: 3.2 | AG36: 8 | AH36: 3.2 | AI36: 8 | AL36: B
A37: 134.031 | B37: Accepted | C37: NA | D37: GridBeyond Limited | E37: GBND-2 | F37: DNO connection | G37: DSF: Load response | H37: 2021-03-01 | I37: 2021-03-31 | J37: 01.03.21 - 31.03.21 (1 months) | K37: As per FFR framework agreement | R37: 1500 | S37: 2300 | T37: 8 | U37: 100.8 | AC37: 3.2 | AD37: 8 | AE37: 8 | AF37: 3.2 | AG37: 8 | AH37: 3.2 | AI37: 8 | AL37: C
A38: 134.032 | B38: Accepted | C38: NA | D38: Habitat Energy Limited | E38: HAB2-FFR | F38: DNO connection | G38: DSF: Storage (for export) | H38: 2021-02-28 | I38: 2021-03-31 | J38: 28.02.21 - 31.03.21 (1 months) | K38: As per FFR framework agreement | L38: 2300 | M38: 2300 | N38: =IF(L38>M38, (2400-L38+M38)/100, IF(AND(L38="",M38="",L38=M38), "", IF(L38=M38,24,(M38-L38)/100))) -> 24 | O38: 2300 | P38: 2300 | Q38: =IF(O38>P38, (2400-O38+P38)/100, IF(AND(O38="",P38="",O38=P38), "", IF(O38=P38,24,(P38-O38)/100))) -> 24 | R38: 2300 | S38: 2300 | T38: =IF(R38>S38, (2400-R38+S38)/100, IF(AND(R38="",S38="",R38=S38), "", IF(R38=S38,24,(S38-R38)/100))) -> 24 | U38: 61.85 | V38: 0 | W38: - | X38: - | AC38: 2 | AD38: 5 | AE38: 5 | AF38: 2 | AG38: 5 | AH38: 2 | AI38: 5
A39: 134.033 | B39: Rejected | C39: 2 | D39: Habitat Energy Limited | E39: HAB3-FFR | F39: DNO connection | G39: DSF: Storage (for export) | H39: 2021-02-28 | I39: 2021-03-31 | J39: 28.02.21 - 31.03.21 (1 months) | K39: As per FFR framework agreement | L39: 2300 | M39: 2300 | N39: =IF(L39>M39, (2400-L39+M39)/100, IF(AND(L39="",M39="",L39=M39), "", IF(L39=M39,24,(M39-L39)/100))) -> 24 | O39: 2300 | P39: 2300 | Q39: =IF(O39>P39, (2400-O39+P39)/100, IF(AND(O39="",P39="",O39=P39), "", IF(O39=P39,24,(P39-O39)/100))) -> 24 | R39: 2300 | S39: 2300 | T39: =IF(R39>S39, (2400-R39+S39)/100, IF(AND(R39="",S39="",R39=S39), "", IF(R39=S39,24,(S39-R39)/100))) -> 24 | U39: 286.35 | V39: 0 | W39: - | X39: - | AC39: 6 | AD39: 15 | AE39: 15 | AF39: 6 | AG39: 15 | AH39: 6 | AI39: 15
A40: 134.034 | B40: Rejected | C40: 2 | D40: Habitat Energy Limited | E40: AG-HEL00G | F40: DNO connection | G40: DSF: Storage (for export) | H40: 2021-02-28 | I40: 2021-03-31 | J40: 28.02.21 - 31.03.21 (1 months) | K40: As per FFR framework agreement | L40: 2300 | M40: 2300 | N40: 24 | O40: 2300 | P40: 2300 | Q40: 24 | R40: 2300 | S40: 2300 | T40: 24 | U40: 930.51 | V40: 0 | W40: - | X40: Yes | AC40: 19.6 | AD40: 49 | AE40: 49 | AF40: 19.6 | AG40: 49 | AH40: 19.6 | AI40: 49
A41: 134.035 | B41: Rejected | C41: 2 | D41: Habitat Energy Limited | E41: AG-HEL01H | F41: DNO connection | G41: DSF: Storage (for export) | H41: 2021-02-28 | I41: 2021-03-31 | J41: 28.02.21 - 31.03.21 (1 months) | K41: As per FFR framework agreement | L41: 2300 | M41: 2300 | N41: 24 | O41: 2300 | P41: 2300 | Q41: 24 | R41: 2300 | S41: 2300 | T41: 24 | U41: 380.8 | V41: 0 | W41: - | X41: Yes | AC41: 8 | AD41: 20 | AE41: 20 | AF41: 8 | AG41: 20 | AH41: 6.4 | AI41: 16
A42: 134.036 | B42: Accepted | C42: NA | D42: Habitat Energy Limited | E42: HAB4-FFR | F42: DNO connection | G42: DSF: Storage (for export) | H42: 2021-02-28 | I42: 2021-03-31 | J42: 28.02.21 - 31.03.21 (1 months) | K42: As per FFR framework agreement | L42: 2300 | M42: 700 | N42: 8 | O42: 2300 | P42: 700 | Q42: 8 | R42: 2300 | S42: 700 | T42: 8 | U42: 342 | V42: 0 | W42: - | X42: - | AC42: 14.4 | AD42: 36 | AE42: 36 | AF42: 14.4 | AG42: 36 | AH42: 14.4 | AI42: 36
A43: 134.037 | B43: Accepted | C43: NA | D43: Habitat Energy Limited | E43: HAB4-FFR | F43: DNO connection | G43: DSF: Storage (for export) | H43: 2021-03-01 | I43: 2021-03-31 | J43: 01.03.21 - 31.03.21 (1 months) | K43: As per FFR framework agreement | L43: 700 | M43: 1500 | N43: 8 | O43: 700 | P43: 1500 | Q43: 8 | R43: 700 | S43: 1500 | T43: 8 | U43: 387 | V43: 0 | W43: - | X43: - | AC43: 14.4 | AD43: 36 | AE43: 36 | AF43: 14.4 | AG43: 36 | AH43: 14.4 | AI43: 36
A44: 134.038 | B44: Accepted | C44: NA | D44: Habitat Energy Limited | E44: HAB4-FFR | F44: DNO connection | G44: DSF: Storage (for export) | H44: 2021-03-01 | I44: 2021-03-31 | J44: 01.03.21 - 31.03.21 (1 months) | K44: As per FFR framework agreement | L44: 1500 | M44: 2300 | N44: 8 | O44: 1500 | P44: 2300 | Q44: 8 | R44: 1500 | S44: 2300 | T44: 8 | U44: 486 | V44: 0 | W44: - | X44: - | AC44: 14.4 | AD44: 36 | AE44: 36 | AF44: 14.4 | AG44: 36 | AH44: 14.4 | AI44: 36
A45: 134.039 | B45: Accepted | C45: NA | D45: Kiwi Power Ltd | E45: KIWIE-2 | F45: DNO connection | G45: DSF: Storage (onsite) | H45: 2021-02-28 | I45: 2021-03-31 | J45: =IFERROR(TEXT(H45,"DD.MM.YY")&" - "&TEXT(I45,"DD.MM.YY")&" ("&DATEDIF(H45,I45+1,"m")&" months)","Tender End Date is Before Start Date") -> 28.02.21 - 31.03.21 (1 months) | K45: As per FFR framework agreement | L45: 2300 | M45: 2300 | N45: 24 | O45: 2300 | P45: 2300 | Q45: 24 | R45: 2300 | S45: 2300 | T45: 24 | U45: 48 | AC45: 1.6 | AD45: 4 | AE45: 4 | AF45: 1.6 | AG45: 4 | AH45: 1.6 | AI45: 4
A46: 134.04 | B46: Accepted | C46: NA | D46: Kiwi Power Ltd | E46: KIWIDA-1 | F46: DNO connection | G46: DSF: Storage (onsite) | H46: 2021-02-28 | I46: 2021-03-31 | J46: =IFERROR(TEXT(H46,"DD.MM.YY")&" - "&TEXT(I46,"DD.MM.YY")&" ("&DATEDIF(H46,I46+1,"m")&" months)","Tender End Date is Before Start Date") -> 28.02.21 - 31.03.21 (1 months) | K46: As per FFR framework agreement | L46: 2300 | M46: 2300 | N46: 24 | O46: 2300 | P46: 2300 | Q46: 24 | R46: 2300 | S46: 2300 | T46: 24 | U46: 24 | AC46: 0.8 | AD46: 2 | AE46: 2 | AF46: 0.8 | AG46: 2 | AH46: 0.8 | AI46: 2
A47: 134.041 | B47: Rejected | C47: 2 | D47: Kiwi Power Ltd | E47: KIWIE-4 | F47: DNO connection | G47: DSF: Storage (onsite) | H47: 2021-02-28 | I47: 2021-03-31 | J47: =IFERROR(TEXT(H47,"DD.MM.YY")&" - "&TEXT(I47,"DD.MM.YY")&" ("&DATEDIF(H47,I47+1,"m")&" months)","Tender End Date is Before Start Date") -> 28.02.21 - 31.03.21 (1 months) | K47: As per FFR framework agreement | L47: 2300 | M47: 2300 | N47: 24 | O47: 2300 | P47: 2300 | Q47: 24 | R47: 2300 | S47: 2300 | T47: 24 | U47: 567 | AC47: 10.8 | AD47: 27 | AE47: 27 | AF47: 10.8 | AG47: 27 | AH47: 10.8 | AI47: 27
A48: 134.042 | B48: Accepted | C48: NA | D48: Limejump Energy Ltd | E48: AG-FLIM01 | F48: TO connection | G48: DSF: Storage (for export) | H48: 2021-02-28 | I48: 2021-03-31 | J48: =IFERROR(TEXT(H48,"DD.MM.YY")&" - "&TEXT(I48,"DD.MM.YY")&" ("&DATEDIF(H48,I48+1,"m")&" months)","Tender End Date is Before Start Date") -> 28.02.21 - 31.03.21 (1 months) | K48: As per FFR framework agreement | L48: 2300 | M48: 700 | N48: 8 | O48: 2300 | P48: 700 | Q48: 8 | R48: 2300 | S48: 700 | T48: 8 | U48: 81.69 | AC48: 2.8 | AD48: 7 | AE48: 7 | AF48: 2.8 | AG48: 7 | AH48: 2.8 | AI48: 7 | AP48: H for 30 minutes only
A49: 134.043 | B49: Accepted | C49: NA | D49: Limejump Energy Ltd | E49: AG-FLIM01 | F49: TO connection | G49: DSF: Storage (for export) | H49: 2021-03-01 | I49: 2021-03-31 | J49: 01.03.21 - 31.03.21 (1 months) | K49: As per FFR framework agreement | L49: 700 | M49: 1500 | N49: 8 | O49: 700 | P49: 1500 | Q49: 8 | R49: 700 | S49: 1500 | T49: 8 | U49: 88.55 | AC49: 2.8 | AD49: 7 | AE49: 7 | AF49: 2.8 | AG49: 7 | AH49: 2.8 | AI49: 7 | AP49: H for 30 minutes only
A50: 134.044 | B50: Accepted | C50: NA | D50: Limejump Energy Ltd | E50: AG-FLIM01 | F50: TO connection | G50: DSF: Storage (for export) | H50: 2021-03-01 | I50: 2021-03-31 | J50: =IFERROR(TEXT(H50,"DD.MM.YY")&" - "&TEXT(I50,"DD.MM.YY")&" ("&DATEDIF(H50,I50+1,"m")&" months)","Tender End Date is Before Start Date") -> 01.03.21 - 31.03.21 (1 months) | K50: As per FFR framework agreement | L50: 1500 | M50: 2300 | N50: 8 | O50: 1500 | P50: 2300 | Q50: 8 | R50: 1500 | S50: 2300 | T50: 8 | U50: 101.5 | AC50: 2.8 | AD50: 7 | AE50: 7 | AF50: 2.8 | AG50: 7 | AH50: 2.8 | AI50: 7 | AP50: H for 30 minutes only
A51: 134.045 | B51: Accepted | C51: NA | D51: Limejump Energy Ltd | E51: AG-GLIM01 | F51: TO connection | G51: DSF: Storage (for export) | H51: 2021-02-28 | I51: 2021-03-31 | J51: =IFERROR(TEXT(H51,"DD.MM.YY")&" - "&TEXT(I51,"DD.MM.YY")&" ("&DATEDIF(H51,I51+1,"m")&" months)","Tender End Date is Before Start Date") -> 28.02.21 - 31.03.21 (1 months) | K51: As per FFR framework agreement | L51: 2300 | M51: 700 | N51: 8 | O51: 2300 | P51: 700 | Q51: 8 | R51: 2300 | S51: 700 | T51: 8 | U51: 21.9 | AC51: 0.8 | AD51: 2 | AE51: 2 | AF51: 0.8 | AG51: 2 | AH51: 0.8 | AI51: 2 | AP51: H for 30 minutes only
A52: 134.046 | B52: Accepted | C52: NA | D52: Limejump Energy Ltd | E52: AG-GLIM01 | F52: TO connection | G52: DSF: Storage (for export) | H52: 2021-03-01 | I52: 2021-03-31 | J52: 01.03.21 - 31.03.21 (1 months) | K52: As per FFR framework agreement | L52: 700 | M52: 1500 | N52: 8 | O52: 700 | P52: 1500 | Q52: 8 | R52: 700 | S52: 1500 | T52: 8 | U52: 23.86 | AC52: 0.8 | AD52: 2 | AE52: 2 | AF52: 0.8 | AG52: 2 | AH52: 0.8 | AI52: 2 | AP52: H for 30 minutes only
A53: 134.047 | B53: Accepted | C53: NA | D53: Limejump Energy Ltd | E53: AG-GLIM01 | F53: TO connection | G53: DSF: Storage (for export) | H53: 2021-03-01 | I53: 2021-03-31 | J53: 01.03.21 - 31.03.21 (1 months) | K53: As per FFR framework agreement | L53: 1500 | M53: 2300 | N53: 8 | O53: 1500 | P53: 2300 | Q53: 8 | R53: 1500 | S53: 2300 | T53: 8 | U53: 29.7 | AC53: 0.8 | AD53: 2 | AE53: 2 | AF53: 0.8 | AG53: 2 | AH53: 0.8 | AI53: 2 | AP53: H for 30 minutes only
A54: 134.048 | B54: Accepted | C54: NA | D54: Limejump Energy Ltd | E54: AG-HLIM01 | F54: TO connection | G54: DSF: Storage (for export) | H54: 2021-02-28 | I54: 2021-03-31 | J54: 28.02.21 - 31.03.21 (1 months) | K54: As per FFR framework agreement | L54: 2300 | M54: 700 | N54: 8 | O54: 2300 | P54: 700 | Q54: 8 | R54: 2300 | S54: 700 | T54: 8 | U54: 33.6 | AC54: 1.2 | AD54: 3 | AE54: 3 | AF54: 1.2 | AG54: 3 | AH54: 1.2 | AI54: 3 | AP54: H for 30 minutes only
A55: 134.049 | B55: Accepted | C55: NA | D55: Limejump Energy Ltd | E55: AG-HLIM01 | F55: TO connection | G55: DSF: Storage (for export) | H55: 2021-03-01 | I55: 2021-03-31 | J55: 01.03.21 - 31.03.21 (1 months) | K55: As per FFR framework agreement | L55: 700 | M55: 1500 | N55: 8 | O55: 700 | P55: 1500 | Q55: 8 | R55: 700 | S55: 1500 | T55: 8 | U55: 36.54 | AC55: 1.2 | AD55: 3 | AE55: 3 | AF55: 1.2 | AG55: 3 | AH55: 1.2 | AI55: 3 | AP55: H for 30 minutes only
A56: 134.05 | B56: Accepted | C56: NA | D56: Limejump Energy Ltd | E56: AG-HLIM01 | F56: TO connection | G56: DSF: Storage (for export) | H56: 2021-03-01 | I56: 2021-03-31 | J56: 01.03.21 - 31.03.21 (1 months) | K56: As per FFR framework agreement | L56: 1500 | M56: 2300 | N56: 8 | O56: 1500 | P56: 2300 | Q56: 8 | R56: 1500 | S56: 2300 | T56: 8 | U56: 44.94 | AC56: 1.2 | AD56: 3 | AE56: 3 | AF56: 1.2 | AG56: 3 | AH56: 1.2 | AI56: 3 | AP56: H for 30 minutes only
A57: 134.051 | B57: Accepted | C57: NA | D57: Limejump Energy Ltd | E57: AG-ELIM02 | F57: TO connection | G57: DSF: Storage (for export) | H57: 2021-02-28 | I57: 2021-03-31 | J57: 28.02.21 - 31.03.21 (1 months) | K57: As per FFR framework agreement | L57: 2300 | M57: 700 | N57: 8 | O57: 2300 | P57: 700 | Q57: 8 | R57: 2300 | S57: 700 | T57: 8 | U57: 34.17 | AC57: 1.2 | AD57: 3 | AE57: 3 | AF57: 1.2 | AG57: 3 | AH57: 1.2 | AI57: 3 | AP57: H for 30 minutes only
A58: 134.052 | B58: Accepted | C58: NA | D58: Limejump Energy Ltd | E58: AG-ELIM02 | F58: TO connection | G58: DSF: Storage (for export) | H58: 2021-03-01 | I58: 2021-03-31 | J58: 01.03.21 - 31.03.21 (1 months) | K58: As per FFR framework agreement | L58: 700 | M58: 1500 | N58: 8 | O58: 700 | P58: 1500 | Q58: 8 | R58: 700 | S58: 1500 | T58: 8 | U58: 37.11 | AC58: 1.2 | AD58: 3 | AE58: 3 | AF58: 1.2 | AG58: 3 | AH58: 1.2 | AI58: 3 | AP58: H for 30 minutes only
A59: 134.053 | B59: Accepted | C59: NA | D59: Limejump Energy Ltd | E59: AG-ELIM02 | F59: TO connection | G59: DSF: Storage (for export) | H59: 2021-03-01 | I59: 2021-03-31 | J59: 01.03.21 - 31.03.21 (1 months) | K59: As per FFR framework agreement | L59: 1500 | M59: 2300 | N59: 8 | O59: 1500 | P59: 2300 | Q59: 8 | R59: 1500 | S59: 2300 | T59: 8 | U59: 44.85 | AC59: 1.2 | AD59: 3 | AE59: 3 | AF59: 1.2 | AG59: 3 | AH59: 1.2 | AI59: 3 | AP59: H for 30 minutes only
A60: 134.054 | B60: Accepted | C60: NA | D60: Limejump Ltd | E60: LJDYN-2 | F60: DNO connection | G60: DSF: Storage (for export) | H60: 2021-02-28 | I60: 2021-03-31 | J60: 28.02.21 - 31.03.21 (1 months) | K60: As per FFR framework agreement | L60: 2300 | M60: 700 | N60: 8 | O60: 2300 | P60: 700 | Q60: 8 | R60: 2300 | S60: 700 | T60: 8 | U60: 71.34 | AC60: 2.4 | AD60: 6 | AE60: 6 | AF60: 2.4 | AG60: 6 | AH60: 2.4 | AI60: 6 | AP60: H for 30 minutes only
A61: 134.055 | B61: Accepted | C61: NA | D61: Limejump Ltd | E61: LJDYN-2 | F61: DNO connection | G61: DSF: Storage (for export) | H61: 2021-03-01 | I61: 2021-03-31 | J61: 01.03.21 - 31.03.21 (1 months) | K61: As per FFR framework agreement | L61: 700 | M61: 1500 | N61: 8 | O61: 700 | P61: 1500 | Q61: 8 | R61: 700 | S61: 1500 | T61: 8 | U61: 77.22 | AC61: 2.4 | AD61: 6 | AE61: 6 | AF61: 2.4 | AG61: 6 | AH61: 2.4 | AI61: 6 | AP61: H for 30 minutes only
A62: 134.056 | B62: Accepted | C62: NA | D62: Limejump Ltd | E62: LJDYN-2 | F62: DNO connection | G62: DSF: Storage (for export) | H62: 2021-03-01 | I62: 2021-03-31 | J62: 01.03.21 - 31.03.21 (1 months) | K62: As per FFR framework agreement | L62: 1500 | M62: 2300 | N62: 8 | O62: 1500 | P62: 2300 | Q62: 8 | R62: 1500 | S62: 2300 | T62: 8 | U62: 88.5 | AC62: 2.4 | AD62: 6 | AE62: 6 | AF62: 2.4 | AG62: 6 | AH62: 2.4 | AI62: 6 | AP62: H for 30 minutes only
A63: 134.057 | B63: Accepted | C63: NA | D63: Limejump Ltd | E63: LJDYP-4 | F63: DNO connection | G63: DSF: Storage (for export) | H63: 2021-03-01 | I63: 2021-03-31 | J63: 01.03.21 - 31.03.21 (1 months) | K63: As per FFR framework agreement | L63: 700 | M63: 1500 | N63: =IF(L63>M63, (2400-L63+M63)/100, IF(AND(L63="",M63="",L63=M63), "", IF(L63=M63,24,(M63-L63)/100))) -> 8 | O63: 700 | P63: 1500 | Q63: =IF(O63>P63, (2400-O63+P63)/100, IF(AND(O63="",P63="",O63=P63), "", IF(O63=P63,24,(P63-O63)/100))) -> 8 | R63: 700 | S63: 1500 | T63: =IF(R63>S63, (2400-R63+S63)/100, IF(AND(R63="",S63="",R63=S63), "", IF(R63=S63,24,(S63-R63)/100))) -> 8 | U63: 48 | AC63: 1.6 | AD63: 4 | AE63: 4 | AF63: 1.6 | AG63: 4 | AH63: 1.6 | AI63: 4 | AL63: A | AP63: H for 30 minutes only
A64: 134.058 | B64: Accepted | C64: NA | D64: Limejump Ltd | E64: LJDYP-4 | F64: DNO connection | G64: DSF: Storage (for export) | H64: 2021-03-01 | I64: 2021-03-31 | J64: 01.03.21 - 31.03.21 (1 months) | K64: As per FFR framework agreement | L64: 1500 | M64: 2300 | N64: =IF(L64>M64, (2400-L64+M64)/100, IF(AND(L64="",M64="",L64=M64), "", IF(L64=M64,24,(M64-L64)/100))) -> 8 | O64: 1500 | P64: 2300 | Q64: =IF(O64>P64, (2400-O64+P64)/100, IF(AND(O64="",P64="",O64=P64), "", IF(O64=P64,24,(P64-O64)/100))) -> 8 | R64: 1500 | S64: 2300 | T64: =IF(R64>S64, (2400-R64+S64)/100, IF(AND(R64="",S64="",R64=S64), "", IF(R64=S64,24,(S64-R64)/100))) -> 8 | U64: 64 | AC64: 1.6 | AD64: 4 | AE64: 4 | AF64: 1.6 | AG64: 4 | AH64: 1.6 | AI64: 4 | AL64: B | AP64: H for 30 minutes only
A65: 134.059 | B65: Accepted | C65: NA | D65: npower | E65: NPFRD-1 | F65: DNO connection | G65: Battery | H65: 2021-02-28 | I65: 2021-03-31 | J65: 28.02.21 - 31.03.21 (1 months) | K65: As per FFR framework agreement | L65: 2300 | M65: 700 | N65: =IF(L65>M65, (2400-L65+M65)/100, IF(AND(L65="",M65="",L65=M65), "", IF(L65=M65,24,(M65-L65)/100))) -> 8 | O65: 2300 | P65: 700 | Q65: =IF(O65>P65, (2400-O65+P65)/100, IF(AND(O65="",P65="",O65=P65), "", IF(O65=P65,24,(P65-O65)/100))) -> 8 | R65: 2300 | S65: 700 | T65: =IF(R65>S65, (2400-R65+S65)/100, IF(AND(R65="",S65="",R65=S65), "", IF(R65=S65,24,(S65-R65)/100))) -> 8 | U65: 43 | AC65: 1.6 | AD65: 4 | AE65: 4 | AF65: 1.6 | AG65: 4 | AH65: 1.6 | AI65: 4 | AL65: A
A66: =A65+0.001 -> 134.06 | B66: Accepted | C66: NA | D66: npower | E66: NPFRD-1 | F66: DNO connection | G66: Battery | H66: 2021-03-01 | I66: 2021-03-31 | J66: 01.03.21 - 31.03.21 (1 months) | K66: As per FFR framework agreement | L66: 700 | M66: 1500 | N66: =IF(L66>M66, (2400-L66+M66)/100, IF(AND(L66="",M66="",L66=M66), "", IF(L66=M66,24,(M66-L66)/100))) -> 8 | O66: 700 | P66: 1500 | Q66: =IF(O66>P66, (2400-O66+P66)/100, IF(AND(O66="",P66="",O66=P66), "", IF(O66=P66,24,(P66-O66)/100))) -> 8 | R66: 700 | S66: 1500 | T66: =IF(R66>S66, (2400-R66+S66)/100, IF(AND(R66="",S66="",R66=S66), "", IF(R66=S66,24,(S66-R66)/100))) -> 8 | U66: 44.8 | AC66: 1.6 | AD66: 4 | AE66: 4 | AF66: 1.6 | AG66: 4 | AH66: 1.6 | AI66: 4 | AL66: B
A67: =A66+0.001 -> 134.061 | B67: Accepted | C67: NA | D67: npower | E67: NPFRD-1 | F67: DNO connection | G67: Battery | H67: 2021-03-01 | I67: 2021-03-31 | J67: 01.03.21 - 31.03.21 (1 months) | K67: As per FFR framework agreement | L67: 1500 | M67: 2300 | N67: 8 | O67: 1500 | P67: 2300 | Q67: 8 | R67: 1500 | S67: 2300 | T67: 8 | U67: 51.8 | AC67: 1.6 | AD67: 4 | AE67: 4 | AF67: 1.6 | AG67: 4 | AH67: 1.6 | AI67: 4 | AL67: C
A68: =A65+0.003 -> 134.062 | B68: Accepted | C68: NA | D68: Open Energi Limited | E68: OPEN-1 | F68: DNO connection | G68: DSF: Load response | H68: 2021-02-28 | I68: 2021-03-31 | J68: =IFERROR(TEXT(H68,"DD.MM.YY")&" - "&TEXT(I68,"DD.MM.YY")&" ("&DATEDIF(H68,I68+1,"m")&" months)","Tender End Date is Before Start Date") -> 28.02.21 - 31.03.21 (1 months) | K68: As per FFR framework agreement | L68: 2300 | M68: 700 | N68: =IF(L68>M68, (2400-L68+M68)/100, IF(AND(L68="",M68="",L68=M68), "", IF(L68=M68,24,(M68-L68)/100))) -> 8 | O68: 2300 | P68: 700 | Q68: =IF(O68>P68, (2400-O68+P68)/100, IF(AND(O68="",P68="",O68=P68), "", IF(O68=P68,24,(P68-O68)/100))) -> 8 | R68: 2300 | S68: 700 | T68: =IF(R68>S68, (2400-R68+S68)/100, IF(AND(R68="",S68="",R68=S68), "", IF(R68=S68,24,(S68-R68)/100))) -> 8 | U68: 20.9 | AC68: 1.2 | AD68: 2 | AE68: 2 | AF68: 1.2 | AG68: 2 | AH68: 1.2 | AI68: 2 | AL68: A
A69: =A68+0.001 -> 134.063 | B69: Accepted | C69: NA | D69: Open Energi Limited | E69: OPEN-1 | F69: DNO connection | G69: DSF: Load response | H69: 2021-03-01 | I69: 2021-03-31 | J69: =IFERROR(TEXT(H69,"DD.MM.YY")&" - "&TEXT(I69,"DD.MM.YY")&" ("&DATEDIF(H69,I69+1,"m")&" months)","Tender End Date is Before Start Date") -> 01.03.21 - 31.03.21 (1 months) | K69: As per FFR framework agreement | L69: 700 | M69: 1500 | N69: =IF(L69>M69, (2400-L69+M69)/100, IF(AND(L69="",M69="",L69=M69), "", IF(L69=M69,24,(M69-L69)/100))) -> 8 | O69: 700 | P69: 1500 | Q69: =IF(O69>P69, (2400-O69+P69)/100, IF(AND(O69="",P69="",O69=P69), "", IF(O69=P69,24,(P69-O69)/100))) -> 8 | R69: 700 | S69: 1500 | T69: =IF(R69>S69, (2400-R69+S69)/100, IF(AND(R69="",S69="",R69=S69), "", IF(R69=S69,24,(S69-R69)/100))) -> 8 | U69: 22.9 | AC69: 1.2 | AD69: 2 | AE69: 2 | AF69: 1.2 | AG69: 2 | AH69: 1.2 | AI69: 2 | AL69: B
A70: =A69+0.001 -> 134.064 | B70: Accepted | C70: NA | D70: Open Energi Limited | E70: OPEN-1 | F70: DNO connection | G70: DSF: Load response | H70: 2021-03-01 | I70: 2021-03-31 | J70: =IFERROR(TEXT(H70,"DD.MM.YY")&" - "&TEXT(I70,"DD.MM.YY")&" ("&DATEDIF(H70,I70+1,"m")&" months)","Tender End Date is Before Start Date") -> 01.03.21 - 31.03.21 (1 months) | K70: As per FFR framework agreement | L70: 1500 | M70: 1900 | N70: 4 | U70: 13.95 | AC70: 0.4 | AD70: 1 | AE70: 1 | AF70: 0.4 | AG70: 1 | AH70: 0.4 | AI70: 1 | AL70: C
A71: =A70+0.001 -> 134.065 | B71: Accepted | C71: NA | D71: Open Energi Limited | E71: OPEN-1 | F71: DNO connection | G71: DSF: Load response | H71: 2021-03-01 | I71: 2021-03-31 | J71: 01.03.21 - 31.03.21 (1 months) | K71: As per FFR framework agreement | L71: 1900 | M71: 2300 | N71: 4 | O71: 1500 | P71: 2300 | Q71: 8 | R71: 1500 | S71: 2300 | T71: 8 | U71: 26.9 | AC71: 1.2 | AD71: 2 | AE71: 2 | AF71: 1.2 | AG71: 2 | AH71: 1.2 | AI71: 2 | AL71: C
A72: =A71+0.001 -> 134.066 | B72: Accepted | C72: NA | D72: Open Energi Limited | E72: OPEN-2 | F72: DNO connection | G72: DSF: Storage (onsite) | H72: 2021-02-28 | I72: 2021-03-31 | J72: =IFERROR(TEXT(H72,"DD.MM.YY")&" - "&TEXT(I72,"DD.MM.YY")&" ("&DATEDIF(H72,I72+1,"m")&" months)","Tender End Date is Before Start Date") -> 28.02.21 - 31.03.21 (1 months) | K72: As per FFR framework agreement | L72: 2300 | M72: 700 | N72: 8 | O72: 2300 | P72: 700 | Q72: 8 | R72: 2300 | S72: 700 | T72: 8 | U72: 34.35 | AC72: 1.2 | AD72: 3 | AE72: 3 | AF72: 1.2 | AG72: 3 | AH72: 1.2 | AI72: 3 | AL72: D
A73: 134.067 | B73: Accepted | C73: NA | D73: Open Energi Limited | E73: OPEN-2 | F73: DNO connection | G73: DSF: Storage (onsite) | H73: 2021-03-01 | I73: 2021-03-31 | J73: 01.03.21 - 31.03.21 (1 months) | K73: As per FFR framework agreement | L73: 700 | M73: 1500 | N73: 8 | O73: 700 | P73: 1500 | Q73: 8 | R73: 700 | S73: 1500 | T73: 8 | U73: 38.85 | AC73: 1.2 | AD73: 3 | AE73: 3 | AF73: 1.2 | AG73: 3 | AH73: 1.2 | AI73: 3 | AL73: E
A74: 134.068 | B74: Accepted | C74: NA | D74: Open Energi Limited | E74: OPEN-2 | F74: DNO connection | G74: DSF: Storage (onsite) | H74: 2021-03-01 | I74: 2021-03-31 | J74: 01.03.21 - 31.03.21 (1 months) | K74: As per FFR framework agreement | L74: 1500 | M74: 2300 | N74: 8 | O74: 1500 | P74: 2300 | Q74: 8 | R74: 1500 | S74: 2300 | T74: 8 | U74: 47.85 | AC74: 1.2 | AD74: 3 | AE74: 3 | AF74: 1.2 | AG74: 3 | AH74: 1.2 | AI74: 3 | AL74: F
A75: 134.069 | B75: Accepted | C75: NA | D75: Social Energy Limited | E75: SOC1-FFR | F75: DNO connection | G75: DSF: Storage (onsite) | H75: 2021-02-28 | I75: 2021-03-31 | J75: 28.02.21 - 31.03.21 (1 months) | K75: As per FFR framework agreement | L75: 2300 | M75: 700 | N75: =IF(L75>M75, (2400-L75+M75)/100, IF(AND(L75="",M75="",L75=M75), "", IF(L75=M75,24,(M75-L75)/100))) -> 8 | O75: 2300 | P75: 700 | Q75: =IF(O75>P75, (2400-O75+P75)/100, IF(AND(O75="",P75="",O75=P75), "", IF(O75=P75,24,(P75-O75)/100))) -> 8 | R75: 2300 | S75: 700 | T75: =IF(R75>S75, (2400-R75+S75)/100, IF(AND(R75="",S75="",R75=S75), "", IF(R75=S75,24,(S75-R75)/100))) -> 8 | U75: 8.69 | AC75: 0.4 | AD75: 1 | AE75: 1 | AF75: 0.4 | AG75: 1 | AH75: 0.4 | AI75: 1 | AP75: H for only 30min
A76: 134.07 | B76: Accepted | C76: NA | D76: Social Energy Limited | E76: SOC1-FFR | F76: DNO connection | G76: DSF: Storage (onsite) | H76: 2021-03-01 | I76: 2021-03-31 | J76: 01.03.21 - 31.03.21 (1 months) | K76: As per FFR framework agreement | L76: 700 | M76: 1500 | N76: =IF(L76>M76, (2400-L76+M76)/100, IF(AND(L76="",M76="",L76=M76), "", IF(L76=M76,24,(M76-L76)/100))) -> 8 | O76: 700 | P76: 1500 | Q76: =IF(O76>P76, (2400-O76+P76)/100, IF(AND(O76="",P76="",O76=P76), "", IF(O76=P76,24,(P76-O76)/100))) -> 8 | R76: 700 | S76: 1500 | T76: =IF(R76>S76, (2400-R76+S76)/100, IF(AND(R76="",S76="",R76=S76), "", IF(R76=S76,24,(S76-R76)/100))) -> 8 | U76: 13.61 | AC76: 0.4 | AD76: 1 | AE76: 1 | AF76: 0.4 | AG76: 1 | AH76: 0.4 | AI76: 1 | AP76: H for only 30min
A77: 134.071 | B77: Accepted | C77: NA | D77: Social Energy Limited | E77: SOC1-FFR | F77: DNO connection | G77: DSF: Storage (onsite) | H77: 2021-03-01 | I77: 2021-03-31 | J77: 01.03.21 - 31.03.21 (1 months) | K77: As per FFR framework agreement | L77: 1500 | M77: 2300 | N77: 8 | O77: 1500 | P77: 2300 | Q77: 8 | R77: 1500 | S77: 2300 | T77: 8 | U77: 13.64 | AC77: 0.4 | AD77: 1 | AE77: 1 | AF77: 0.4 | AG77: 1 | AH77: 0.4 | AI77: 1 | AP77: H for only 30min
A78: 134.072 | B78: Accepted | C78: NA | D78: Social Energy Limited | E78: SOC2-FFR | F78: DNO connection | G78: DSF: Storage (onsite) | H78: 2021-02-28 | I78: 2021-03-31 | J78: 28.02.21 - 31.03.21 (1 months) | K78: As per FFR framework agreement | L78: 2300 | M78: 700 | N78: 8 | O78: 2300 | P78: 700 | Q78: 8 | R78: 2300 | S78: 700 | T78: 8 | U78: 8.86 | AC78: 0.4 | AD78: 1 | AE78: 1 | AF78: 0.4 | AG78: 1 | AH78: 0.4 | AI78: 1 | AP78: H for only 30min
A79: =A78+0.001 -> 134.073 | B79: Accepted | C79: NA | D79: Social Energy Limited | E79: SOC2-FFR | F79: DNO connection | G79: DSF: Storage (onsite) | H79: 2021-03-01 | I79: 2021-03-31 | J79: 01.03.21 - 31.03.21 (1 months) | K79: As per FFR framework agreement | L79: 700 | M79: 1500 | N79: 8 | O79: 700 | P79: 1500 | Q79: 8 | R79: 700 | S79: 1500 | T79: 8 | U79: 13.18 | AC79: 0.4 | AD79: 1 | AE79: 1 | AF79: 0.4 | AG79: 1 | AH79: 0.4 | AI79: 1 | AP79: H for only 30min
A80: 134.074 | B80: Accepted | C80: NA | D80: Social Energy Limited | E80: SOC2-FFR | F80: DNO connection | G80: DSF: Storage (onsite) | H80: 2021-03-01 | I80: 2021-03-31 | J80: 01.03.21 - 31.03.21 (1 months) | K80: As per FFR framework agreement | L80: 1500 | M80: 2300 | N80: 8 | O80: 1500 | P80: 2300 | Q80: 8 | R80: 1500 | S80: 2300 | T80: 8 | U80: 13.88 | AC80: 0.4 | AD80: 1 | AE80: 1 | AF80: 0.4 | AG80: 1 | AH80: 0.4 | AI80: 1 | AP80: H for only 30min
A81: 134.075 | B81: Accepted | C81: NA | D81: Social Energy Limited | E81: SOC3-FFR | F81: DNO connection | G81: DSF: Storage (onsite) | H81: 2021-02-28 | I81: 2021-03-31 | J81: 28.02.21 - 31.03.21 (1 months) | K81: As per FFR framework agreement | L81: 2300 | M81: 700 | N81: 8 | O81: 2300 | P81: 700 | Q81: 8 | R81: 2300 | S81: 700 | T81: 8 | U81: 9.01 | AC81: 0.4 | AD81: 1 | AE81: 1 | AF81: 0.4 | AG81: 1 | AH81: 0.4 | AI81: 1 | AP81: H for only 30min
A82: 134.076 | B82: Accepted | C82: NA | D82: Social Energy Limited | E82: SOC3-FFR | F82: DNO connection | G82: DSF: Storage (onsite) | H82: 2021-03-01 | I82: 2021-03-31 | J82: 01.03.21 - 31.03.21 (1 months) | K82: As per FFR framework agreement | L82: 700 | M82: 1500 | N82: 8 | O82: 700 | P82: 1500 | Q82: 8 | R82: 700 | S82: 1500 | T82: 8 | U82: 12.93 | AC82: 0.4 | AD82: 1 | AE82: 1 | AF82: 0.4 | AG82: 1 | AH82: 0.4 | AI82: 1 | AP82: H for only 30min
A83: 134.077 | B83: Accepted | C83: NA | D83: Social Energy Limited | E83: SOC3-FFR | F83: DNO connection | G83: DSF: Storage (onsite) | H83: 2021-03-01 | I83: 2021-03-31 | J83: 01.03.21 - 31.03.21 (1 months) | K83: As per FFR framework agreement | L83: 1500 | M83: 2300 | N83: 8 | O83: 1500 | P83: 2300 | Q83: 8 | R83: 1500 | S83: 2300 | T83: 8 | U83: 14.19 | AC83: 0.4 | AD83: 1 | AE83: 1 | AF83: 0.4 | AG83: 1 | AH83: 0.4 | AI83: 1 | AP83: H for only 30min
A84: 134.078 | B84: Accepted | C84: NA | D84: Social Energy Limited | E84: SOC4-FFR | F84: DNO connection | G84: DSF: Storage (onsite) | H84: 2021-02-28 | I84: 2021-03-31 | J84: 28.02.21 - 31.03.21 (1 months) | K84: As per FFR framework agreement | L84: 2300 | M84: 700 | N84: 8 | O84: 2300 | P84: 700 | Q84: 8 | R84: 2300 | S84: 700 | T84: 8 | U84: 9.18 | AC84: 0.4 | AD84: 1 | AE84: 1 | AF84: 0.4 | AG84: 1 | AH84: 0.4 | AI84: 1 | AP84: H for only 30min
A85: 134.079 | B85: Accepted | C85: NA | D85: Social Energy Limited | E85: SOC4-FFR | F85: DNO connection | G85: DSF: Storage (onsite) | H85: 2021-03-01 | I85: 2021-03-31 | J85: 01.03.21 - 31.03.21 (1 months) | K85: As per FFR framework agreement | L85: 700 | M85: 1500 | N85: 8 | O85: 700 | P85: 1500 | Q85: 8 | R85: 700 | S85: 1500 | T85: 8 | U85: 12.67 | AC85: 0.4 | AD85: 1 | AE85: 1 | AF85: 0.4 | AG85: 1 | AH85: 0.4 | AI85: 1 | AP85: H for only 30min
A86: 134.08 | B86: Accepted | C86: NA | D86: Social Energy Limited | E86: SOC4-FFR | F86: DNO connection | G86: DSF: Storage (onsite) | H86: 2021-03-01 | I86: 2021-03-31 | J86: 01.03.21 - 31.03.21 (1 months) | K86: As per FFR framework agreement | L86: 1500 | M86: 2300 | N86: 8 | O86: 1500 | P86: 2300 | Q86: 8 | R86: 1500 | S86: 2300 | T86: 8 | U86: 14.52 | AC86: 0.4 | AD86: 1 | AE86: 1 | AF86: 0.4 | AG86: 1 | AH86: 0.4 | AI86: 1 | AP86: H for only 30min
A87: 134.081 | B87: Accepted | C87: NA | D87: Social Energy Limited | E87: SOC5-FFR | F87: DNO connection | G87: DSF: Storage (onsite) | H87: 2021-02-28 | I87: 2021-03-31 | J87: 28.02.21 - 31.03.21 (1 months) | K87: As per FFR framework agreement | L87: 2300 | M87: 700 | N87: 8 | O87: 2300 | P87: 700 | Q87: 8 | R87: 2300 | S87: 700 | T87: 8 | U87: 9.34 | AC87: 0.4 | AD87: 1 | AE87: 1 | AF87: 0.4 | AG87: 1 | AH87: 0.4 | AI87: 1 | AP87: H for only 30min
A88: 134.082 | B88: Accepted | C88: NA | D88: Social Energy Limited | E88: SOC5-FFR | F88: DNO connection | G88: DSF: Storage (onsite) | H88: 2021-03-01 | I88: 2021-03-31 | J88: 01.03.21 - 31.03.21 (1 months) | K88: As per FFR framework agreement | L88: 700 | M88: 1500 | N88: 8 | O88: 700 | P88: 1500 | Q88: 8 | R88: 700 | S88: 1500 | T88: 8 | U88: 12.42 | AC88: 0.4 | AD88: 1 | AE88: 1 | AF88: 0.4 | AG88: 1 | AH88: 0.4 | AI88: 1 | AP88: H for only 30min
A89: =A88+0.001 -> 134.083 | B89: Accepted | C89: NA | D89: Social Energy Limited | E89: SOC5-FFR | F89: DNO connection | G89: DSF: Storage (onsite) | H89: 2021-03-01 | I89: 2021-03-31 | J89: 01.03.21 - 31.03.21 (1 months) | K89: As per FFR framework agreement | L89: 1500 | M89: 2300 | N89: 8 | O89: 1500 | P89: 2300 | Q89: 8 | R89: 1500 | S89: 2300 | T89: 8 | U89: 14.77 | AC89: 0.4 | AD89: 1 | AE89: 1 | AF89: 0.4 | AG89: 1 | AH89: 0.4 | AI89: 1 | AP89: H for only 30min
A90: 134.084 | B90: Accepted | C90: NA | D90: Social Energy Limited | E90: SOC6-FFR | F90: DNO connection | G90: DSF: Storage (onsite) | H90: 2021-02-28 | I90: 2021-03-31 | J90: 28.02.21 - 31.03.21 (1 months) | K90: As per FFR framework agreement | L90: 2300 | M90: 700 | N90: 8 | O90: 2300 | P90: 700 | Q90: 8 | R90: 2300 | S90: 700 | T90: 8 | U90: 9.49 | AC90: 0.4 | AD90: 1 | AE90: 1 | AF90: 0.4 | AG90: 1 | AH90: 0.4 | AI90: 1 | AP90: H for only 30min
A91: 134.085 | B91: Accepted | C91: NA | D91: Social Energy Limited | E91: SOC6-FFR | F91: DNO connection | G91: DSF: Storage (onsite) | H91: 2021-03-01 | I91: 2021-03-31 | J91: 01.03.21 - 31.03.21 (1 months) | K91: As per FFR framework agreement | L91: 700 | M91: 1500 | N91: 8 | O91: 700 | P91: 1500 | Q91: 8 | R91: 700 | S91: 1500 | T91: 8 | U91: 12.19 | AC91: 0.4 | AD91: 1 | AE91: 1 | AF91: 0.4 | AG91: 1 | AH91: 0.4 | AI91: 1 | AP91: H for only 30min
A92: 134.086 | B92: Accepted | C92: NA | D92: Social Energy Limited | E92: SOC6-FFR | F92: DNO connection | G92: DSF: Storage (onsite) | H92: 2021-03-01 | I92: 2021-03-31 | J92: 01.03.21 - 31.03.21 (1 months) | K92: As per FFR framework agreement | L92: 1500 | M92: 2300 | N92: 8 | O92: 1500 | P92: 2300 | Q92: 8 | R92: 1500 | S92: 2300 | T92: 8 | U92: 15.01 | AC92: 0.4 | AD92: 1 | AE92: 1 | AF92: 0.4 | AG92: 1 | AH92: 0.4 | AI92: 1 | AP92: H for only 30min
A93: =A92+0.001 -> 134.087 | B93: Accepted | C93: NA | D93: Social Energy Limited | E93: SOC7-FFR | F93: DNO connection | G93: DSF: Storage (onsite) | H93: 2021-02-28 | I93: 2021-03-31 | J93: 28.02.21 - 31.03.21 (1 months) | K93: As per FFR framework agreement | L93: 2300 | M93: 700 | N93: 8 | O93: 2300 | P93: 700 | Q93: 8 | R93: 2300 | S93: 700 | T93: 8 | U93: 9.67 | AC93: 0.4 | AD93: 1 | AE93: 1 | AF93: 0.4 | AG93: 1 | AH93: 0.4 | AI93: 1 | AP93: H for only 30min
A94: 134.088 | B94: Accepted | C94: NA | D94: Social Energy Limited | E94: SOC7-FFR | F94: DNO connection | G94: DSF: Storage (onsite) | H94: 2021-03-01 | I94: 2021-03-31 | J94: 01.03.21 - 31.03.21 (1 months) | K94: As per FFR framework agreement | L94: 700 | M94: 1500 | N94: 8 | O94: 700 | P94: 1500 | Q94: 8 | R94: 700 | S94: 1500 | T94: 8 | U94: 11.95 | AC94: 0.4 | AD94: 1 | AE94: 1 | AF94: 0.4 | AG94: 1 | AH94: 0.4 | AI94: 1 | AP94: H for only 30min
A95: 134.089 | B95: Accepted | C95: NA | D95: Social Energy Limited | E95: SOC7-FFR | F95: DNO connection | G95: DSF: Storage (onsite) | H95: 2021-03-01 | I95: 2021-03-31 | J95: 01.03.21 - 31.03.21 (1 months) | K95: As per FFR framework agreement | L95: 1500 | M95: 2300 | N95: 8 | O95: 1500 | P95: 2300 | Q95: 8 | R95: 1500 | S95: 2300 | T95: 8 | U95: 15.46 | AC95: 0.4 | AD95: 1 | AE95: 1 | AF95: 0.4 | AG95: 1 | AH95: 0.4 | AI95: 1 | AP95: H for only 30min
A96: 134.09 | B96: Accepted | C96: NA | D96: Social Energy Limited | E96: SOC8-FFR | F96: DNO connection | G96: DSF: Storage (onsite) | H96: 2021-02-28 | I96: 2021-03-31 | J96: 28.02.21 - 31.03.21 (1 months) | K96: As per FFR framework agreement | L96: 2300 | M96: 700 | N96: 8 | O96: 2300 | P96: 700 | Q96: 8 | R96: 2300 | S96: 700 | T96: 8 | U96: 9.89 | AC96: 0.4 | AD96: 1 | AE96: 1 | AF96: 0.4 | AG96: 1 | AH96: 0.4 | AI96: 1 | AP96: H for only 30min
A97: 134.091 | B97: Accepted | C97: NA | D97: Social Energy Limited | E97: SOC8-FFR | F97: DNO connection | G97: DSF: Storage (onsite) | H97: 2021-03-01 | I97: 2021-03-31 | J97: 01.03.21 - 31.03.21 (1 months) | K97: As per FFR framework agreement | L97: 700 | M97: 1500 | N97: 8 | O97: 700 | P97: 1500 | Q97: 8 | R97: 700 | S97: 1500 | T97: 8 | U97: 11.71 | AC97: 0.4 | AD97: 1 | AE97: 1 | AF97: 0.4 | AG97: 1 | AH97: 0.4 | AI97: 1 | AP97: H for only 30min
A98: 134.092 | B98: Accepted | C98: NA | D98: Social Energy Limited | E98: SOC8-FFR | F98: DNO connection | G98: DSF: Storage (onsite) | H98: 2021-03-01 | I98: 2021-03-31 | J98: 01.03.21 - 31.03.21 (1 months) | K98: As per FFR framework agreement | L98: 1500 | M98: 2300 | N98: 8 | O98: 1500 | P98: 2300 | Q98: 8 | R98: 1500 | S98: 2300 | T98: 8 | U98: 15.87 | AC98: 0.4 | AD98: 1 | AE98: 1 | AF98: 0.4 | AG98: 1 | AH98: 0.4 | AI98: 1 | AP98: H for only 30min
A99: 134.093 | B99: Accepted | C99: NA | D99: Social Energy Limited | E99: SOC9-FFR | F99: DNO connection | G99: DSF: Storage (onsite) | H99: 2021-02-28 | I99: 2021-03-31 | J99: 28.02.21 - 31.03.21 (1 months) | K99: As per FFR framework agreement | L99: 2300 | M99: 700 | N99: 8 | O99: 2300 | P99: 700 | Q99: 8 | R99: 2300 | S99: 700 | T99: 8 | U99: 10.19 | AC99: 0.4 | AD99: 1 | AE99: 1 | AF99: 0.4 | AG99: 1 | AH99: 0.4 | AI99: 1 | AP99: H for only 30min
A100: 134.094 | B100: Accepted | C100: NA | D100: Social Energy Limited | E100: SOC9-FFR | F100: DNO connection | G100: DSF: Storage (onsite) | H100: 2021-03-01 | I100: 2021-03-31 | J100: 01.03.21 - 31.03.21 (1 months) | K100: As per FFR framework agreement | L100: 700 | M100: 1500 | N100: 8 | O100: 700 | P100: 1500 | Q100: 8 | R100: 700 | S100: 1500 | T100: 8 | U100: 11.48 | AC100: 0.4 | AD100: 1 | AE100: 1 | AF100: 0.4 | AG100: 1 | AH100: 0.4 | AI100: 1 | AP100: H for only 30min
A101: 134.095 | B101: Accepted | C101: NA | D101: Social Energy Limited | E101: SOC9-FFR | F101: DNO connection | G101: DSF: Storage (onsite) | H101: 2021-03-01 | I101: 2021-03-31 | J101: 01.03.21 - 31.03.21 (1 months) | K101: As per FFR framework agreement | L101: 1500 | M101: 2300 | N101: 8 | O101: 1500 | P101: 2300 | Q101: 8 | R101: 1500 | S101: 2300 | T101: 8 | U101: 16.17 | AC101: 0.4 | AD101: 1 | AE101: 1 | AF101: 0.4 | AG101: 1 | AH101: 0.4 | AI101: 1 | AP101: H for only 30min
A102: 134.096 | B102: Accepted | C102: NA | D102: Pelham Storage Limited | E102: PLHM-1 | F102: DNO connection | G102: DSF: Storage (for export) | H102: 2021-02-28 | I102: 2021-03-31 | J102: 28.02.21 - 31.03.21 (1 months) | K102: As per FFR framework agreement | L102: 2300 | M102: 700 | N102: =IF(L102>M102, (2400-L102+M102)/100, IF(AND(L102="",M102="",L102=M102), "", IF(L102=M102,24,(M102-L102)/100))) -> 8 | O102: 2300 | P102: 700 | Q102: =IF(O102>P102, (2400-O102+P102)/100, IF(AND(O102="",P102="",O102=P102), "", IF(O102=P102,24,(P102-O102)/100))) -> 8 | R102: 2300 | S102: 700 | T102: =IF(R102>S102, (2400-R102+S102)/100, IF(AND(R102="",S102="",R102=S102), "", IF(R102=S102,24,(S102-R102)/100))) -> 8 | U102: 477.12 | AC102: 19.2 | AD102: 48 | AE102: 48 | AF102: 19.2 | AG102: 48 | AH102: 19.2 | AI102: 48 | AL102: A
A103: 134.097 | B103: Accepted | C103: NA | D103: Pelham Storage Limited | E103: PLHM-1 | F103: DNO connection | G103: DSF: Storage (for export) | H103: 2021-03-01 | I103: 2021-03-31 | J103: 01.03.21 - 31.03.21 (1 months) | K103: As per FFR framework agreement | L103: 700 | M103: 1500 | N103: =IF(L103>M103, (2400-L103+M103)/100, IF(AND(L103="",M103="",L103=M103), "", IF(L103=M103,24,(M103-L103)/100))) -> 8 | O103: 700 | P103: 1500 | Q103: =IF(O103>P103, (2400-O103+P103)/100, IF(AND(O103="",P103="",O103=P103), "", IF(O103=P103,24,(P103-O103)/100))) -> 8 | R103: 700 | S103: 1500 | T103: =IF(R103>S103, (2400-R103+S103)/100, IF(AND(R103="",S103="",R103=S103), "", IF(R103=S103,24,(S103-R103)/100))) -> 8 | U103: 525.6 | AC103: 19.2 | AD103: 48 | AE103: 48 | AF103: 19.2 | AG103: 48 | AH103: 19.2 | AI103: 48 | AL103: A
A104: 134.098 | B104: Accepted | C104: NA | D104: Pelham Storage Limited | E104: PLHM-1 | F104: DNO connection | G104: DSF: Storage (for export) | H104: 2021-03-01 | I104: 2021-03-31 | J104: 01.03.21 - 31.03.21 (1 months) | K104: As per FFR framework agreement | L104: 1500 | M104: 2300 | N104: 8 | O104: 1500 | P104: 2300 | Q104: 8 | R104: 1500 | S104: 2300 | T104: 8 | U104: 794.4 | AC104: 19.2 | AD104: 48 | AE104: 48 | AF104: 19.2 | AG104: 48 | AH104: 19.2 | AI104: 48 | AL104: A
A105: 134.099 | B105: Accepted | C105: NA | D105: Statkraft Markets GmbH | E105: SKFT-1 | F105: DNO Connection | G105: DSF: Storage (for export) | H105: 2021-03-01 | I105: 2021-03-31 | J105: 01.03.21 - 31.03.21 (1 months) | K105: As per FFR framework agreement | L105: 700 | M105: 1500 | N105: 8 | O105: 700 | P105: 1500 | Q105: 8 | R105: 700 | S105: 1500 | T105: 8 | U105: 55.4 | AC105: 2 | AD105: 5 | AE105: 5 | AF105: 2 | AG105: 5 | AH105: 2 | AI105: 5
A106: 134.1 | B106: Accepted | C106: NA | D106: Statkraft Markets GmbH | E106: SKFT-1 | F106: DNO Connection | G106: DSF: Storage (for export) | H106: 2021-03-01 | I106: 2021-03-31 | J106: 01.03.21 - 31.03.21 (1 months) | K106: As per FFR framework agreement | L106: 1500 | M106: 2300 | N106: 8 | O106: 1500 | P106: 2300 | Q106: 8 | R106: 1500 | S106: 2300 | T106: 8 | U106: 34.47 | AC106: 1.2 | AD106: 3 | AE106: 3 | AF106: 1.2 | AG106: 3 | AH106: 1.2 | AI106: 3
A107: =A106+0.004 -> 134.104 | B107: Rejected | C107: 2 | D107: UK Power Reserve Ltd | E107: AFFR1 | F107: DNO connection | G107: DSF: Storage (for export) | H107: 2021-02-28 | I107: 2021-03-31 | J107: 28.02.21 - 31.03.21 (1 months) | K107: As per FFR framework agreement | L107: 2300 | M107: 2300 | N107: =IF(L107>M107, (2400-L107+M107)/100, IF(AND(L107="",M107="",L107=M107), "", IF(L107=M107,24,(M107-L107)/100))) -> 24 | O107: 2300 | P107: 2300 | Q107: =IF(O107>P107, (2400-O107+P107)/100, IF(AND(O107="",P107="",O107=P107), "", IF(O107=P107,24,(P107-O107)/100))) -> 24 | R107: 2300 | S107: 2300 | T107: =IF(R107>S107, (2400-R107+S107)/100, IF(AND(R107="",S107="",R107=S107), "", IF(R107=S107,24,(S107-R107)/100))) -> 24 | U107: =20*20 -> 400 | AC107: 8 | AD107: 20 | AE107: 20 | AF107: 8 | AG107: 20 | AH107: 8 | AI107: 20
A108: 134.105 | B108: Rejected | C108: 2 | D108: UK Power Reserve Ltd | E108: AFFR2 | F108: DNO connection | G108: DSF: Storage (for export) | H108: 2021-02-28 | I108: 2021-03-31 | J108: 28.02.21 - 31.03.21 (1 months) | K108: As per FFR framework agreement | L108: 2300 | M108: 2300 | N108: 24 | O108: 2300 | P108: 2300 | Q108: 24 | R108: 2300 | S108: 2300 | T108: 24 | U108: =25*20 -> 500 | AC108: 8 | AD108: 20 | AE108: 20 | AF108: 8 | AG108: 20 | AH108: 8 | AI108: 20
A109: 134.106 | B109: Rejected | C109: 2 | D109: UK Power Reserve Ltd | E109: AFFR3 | F109: DNO connection | G109: DSF: Storage (for export) | H109: 2021-02-28 | I109: 2021-03-31 | J109: 28.02.21 - 31.03.21 (1 months) | K109: As per FFR framework agreement | L109: 2300 | M109: 2300 | N109: 24 | O109: 2300 | P109: 2300 | Q109: 24 | R109: 2300 | S109: 2300 | T109: 24 | U109: =30*20 -> 600 | AC109: 8 | AD109: 20 | AE109: 20 | AF109: 8 | AG109: 20 | AH109: 8 | AI109: 20
A110: 134.107 | B110: Accepted | C110: NA | D110: Upside Energy | E110: UPEN-2 | F110: DNO connection | G110: DSF: Storage (onsite) | H110: 2021-02-28 | I110: 2021-03-31 | J110: 28.02.21 - 31.03.21 (1 months) | K110: as per FFR framework agreement | L110: 2300 | M110: 1500 | N110: =IF(L110>M110, (2400-L110+M110)/100, IF(AND(L110="",M110="",L110=M110), "", IF(L110=M110,24,(M110-L110)/100))) -> 16 | O110: 2300 | P110: 1500 | Q110: =IF(O110>P110, (2400-O110+P110)/100, IF(AND(O110="",P110="",O110=P110), "", IF(O110=P110,24,(P110-O110)/100))) -> 16 | R110: 2300 | S110: 1500 | T110: =IF(R110>S110, (2400-R110+S110)/100, IF(AND(R110="",S110="",R110=S110), "", IF(R110=S110,24,(S110-R110)/100))) -> 16 | U110: 11.22 | AC110: 0.4 | AD110: 1 | AE110: 1 | AF110: 0.4 | AG110: 1 | AH110: 0.4 | AI110: 1
A111: 134.108 | B111: Accepted | C111: NA | D111: Upside Energy | E111: UPEN-1 | F111: DNO connection | G111: DSF: Storage (for export) | H111: 2021-02-28 | I111: 2021-03-31 | J111: 28.02.21 - 31.03.21 (1 months) | K111: as per FFR framework agreement | L111: 2300 | M111: 700 | N111: =IF(L111>M111, (2400-L111+M111)/100, IF(AND(L111="",M111="",L111=M111), "", IF(L111=M111,24,(M111-L111)/100))) -> 8 | O111: 2300 | P111: 700 | Q111: =IF(O111>P111, (2400-O111+P111)/100, IF(AND(O111="",P111="",O111=P111), "", IF(O111=P111,24,(P111-O111)/100))) -> 8 | R111: 2300 | S111: 700 | T111: =IF(R111>S111, (2400-R111+S111)/100, IF(AND(R111="",S111="",R111=S111), "", IF(R111=S111,24,(S111-R111)/100))) -> 8 | U111: 7.48 | AC111: 0.4 | AD111: 1 | AE111: 1 | AF111: 0.4 | AG111: 1 | AH111: 0 | AI111: 0
A112: 134.109 | B112: Rejected | C112: 2 | D112: BESS HoldCo 3 Ltd | E112: DBESSH-33 | F112: DNO connection | G112: Battery | H112: 2021-02-28 | I112: 2021-03-31 | J112: 28.02.21 - 31.03.21 (1 months) | K112: As per FFR framework agreement | L112: 2300 | M112: 2300 | N112: =IF(L112>M112, (2400-L112+M112)/100, IF(AND(L112="",M112="",L112=M112), "", IF(L112=M112,24,(M112-L112)/100))) -> 24 | O112: 2300 | P112: 2300 | Q112: =IF(O112>P112, (2400-O112+P112)/100, IF(AND(O112="",P112="",O112=P112), "", IF(O112=P112,24,(P112-O112)/100))) -> 24 | R112: 2300 | S112: 2300 | T112: =IF(R112>S112, (2400-R112+S112)/100, IF(AND(R112="",S112="",R112=S112), "", IF(R112=S112,24,(S112-R112)/100))) -> 24 | U112: 180 | AC112: 4 | AD112: 10 | AE112: 10 | AF112: 4 | AG112: 10 | AH112: 4 | AI112: 10 | AL112: A
A114: Rejection Codes | B114: Code | D114: Reason
B115: 1 | C115: Beneficial | E115: 1.1 | F115: Req. satisifed by more beneficial bids
E116: 1.2 | F116: No outstanding req.
E117: 1.3 | F117: Desired procurement volume already met
E118: 1.4 | F118: Formed part of AON. Not collectively beneficial
B119: 2 | C119: Price not beneificial across tendered period
B120: 3 | C120: Does not meet tender prerequisites
B121: 4 | C121: Multiple tenders received for the same unit
B122: 5 | C122: Beyond desired procument volume
